bitfinex-derivatives/quotes_ETHF0:USTF0_20260119
["timestamp","ask_amount","ask_price","bid_price","bid_amount"]
[1768859656246,0.30429594,3214.9,3214.0,0.53302947]
[1768859656447,1.10783386,3214.8,3214.0,0.53302947]
[1768859656645,1.10783386,3214.7,3214.0,0.53302947]
[1768859656847,0.80353792,3214.6,3214.0,0.53302947]
[1768859657048,0.80353792,3214.5,3214.0,0.53302947]
[1768859657347,1.67327764,3215.0,3214.0,0.53302947]
[1768859657548,0.30429841,3214.9,3214.0,0.53302947]
[1768859657847,1.10784281,3214.8,3214.0,0.53302947]
[1768859658048,1.10784281,3214.7,3214.0,0.53302947]
[1768859658248,0.8035444,3214.6,3214.0,0.53302947]
[1768859658445,0.8035444,3214.5,3214.0,0.53302947]
[1768859658649,1.67327764,3215.0,3214.0,0.53302947]
[1768859658849,0.30430006,3214.9,3214.0,0.53302947]
[1768859659049,1.10784883,3214.8,3214.0,0.53302947]
[1768859659250,1.10784883,3214.7,3214.0,0.53302947]
[1768859659458,0.80354877,3214.6,3214.0,0.53302947]
[1768859659658,0.80354877,3214.5,3214.0,0.53302947]
[1768859659858,1.67327764,3215.0,3214.0,0.53302947]
[1768859660055,0.30430217,3214.9,3214.0,0.53302947]
[1768859660358,1.10785644,3214.8,3214.0,0.53302947]
[1768859660558,1.10785644,3214.7,3214.0,0.53302947]
[1768859660856,0.80355427,3214.6,3214.0,0.53302947]
[1768859661056,0.80355427,3214.5,3214.0,0.53302947]
[1768859661258,0.80355427,3214.4,3214.0,0.53302947]
[1768859661458,1.67327764,3215.0,3214.0,0.53302947]
[1768859661660,0.30430501,3214.9,3214.0,0.53302947]
[1768859661857,1.10786678,3214.8,3214.0,0.53302947]
[1768859662057,1.10786678,3214.7,3214.0,0.53302947]
[1768859662249,1.67327764,3215.0,3214.0,0.53302947]
[1768859662250,0.80356177,3214.6,3214.0,0.53302947]
[1768859662450,0.80356177,3214.5,3214.0,0.53302947]
[1768859662651,0.80356177,3214.4,3214.0,0.53302947]
[1768859662855,1.67327764,3215.0,3214.0,0.53302947]
[1768859663058,0.30430498,3214.9,3214.0,0.53302947]
[1768859663256,1.10786668,3214.8,3214.0,0.53302947]
[1768859663455,1.10786668,3214.7,3214.0,0.53302947]
[1768859663658,0.8035617,3214.6,3214.0,0.53302947]
[1768859663861,0.8035617,3214.5,3214.0,0.53302947]
[1768859664061,0.8035617,3214.4,3214.0,0.53302947]
[1768859664270,1.67327764,3215.0,3214.0,0.53302947]
[1768859664462,0.30430455,3214.9,3214.0,0.53302947]
[1768859664655,1.10786516,3214.8,3214.0,0.53302947]
[1768859664954,1.10786516,3214.7,3214.0,0.53302947]
[1768859665254,0.80356061,3214.6,3214.0,0.53302947]
[1768859665455,0.80356061,3214.5,3214.0,0.53302947]
[1768859665656,0.80356061,3214.4,3214.0,0.53302947]
[1768859665857,1.67327764,3215.0,3214.0,0.53302947]
[1768859666064,0.30430454,3214.9,3214.0,0.53302947]
[1768859666264,1.10786513,3214.8,3214.0,0.53302947]
[1768859666467,1.10786513,3214.7,3214.0,0.53302947]
[1768859666667,0.80356059,3214.6,3214.0,0.53302947]
[1768859666866,0.80356059,3214.5,3214.0,0.53302947]
[1768859667057,1.67327764,3215.0,3214.0,0.53302947]
[1768859667257,0.3043051,3214.9,3214.0,0.53302947]
[1768859667458,1.67327764,3215.0,3214.0,0.53302947]
[1768859667459,1.10786712,3214.8,3214.0,0.53302947]
[1768859667666,1.10786712,3214.7,3214.0,0.53302947]
[1768859667867,0.80356202,3214.6,3214.0,0.53302947]
[1768859668065,0.80356202,3214.5,3214.0,0.53302947]
[1768859668267,1.67327764,3215.0,3214.0,0.53302947]
[1768859668467,0.30430538,3214.9,3214.0,0.53302947]
[1768859668669,1.10786809,3214.8,3214.0,0.53302947]
[1768859668869,0.80356271,3214.7,3214.0,0.53302947]
[1768859669068,0.80356271,3214.6,3214.0,0.53302947]
[1768859669265,0.80356271,3214.5,3214.0,0.53302947]
[1768859669567,0.80356271,3214.4,3214.0,0.53302947]
[1768859669764,1.67327764,3215.0,3214.0,0.53302947]
[1768859670069,2.47801303,3215.0,3214.0,0.53302947]
[1768859670268,0.80473539,3214.9,3214.0,0.53302947]
[1768859670467,0.80473539,3214.8,3214.0,0.53302947]
[1768859670670,0.80473539,3214.7,3214.0,0.53302947]
[1768859670872,0.80473539,3214.6,3214.0,0.53302947]
[1768859671063,0.80473539,3214.5,3214.0,0.53302947]
[1768859671363,0.80473539,3214.4,3214.0,0.53302947]
[1768859671661,1.67327764,3215.0,3214.0,0.53302947]
[1768859671861,2.47801345,3215.0,3214.0,0.53302947]
[1768859672065,0.80473581,3214.9,3214.0,0.53302947]
[1768859672258,0.80473581,3214.8,3214.0,0.53302947]
[1768859672469,0.80473581,3214.7,3214.0,0.53302947]
[1768859672670,0.80473581,3214.6,3214.0,0.53302947]
[1768859672970,0.80473581,3214.5,3214.0,0.53302947]
[1768859673171,0.80473581,3214.4,3214.0,0.53302947]
[1768859673370,1.67327764,3215.0,3214.0,0.53302947]
[1768859673564,2.47802332,3215.0,3214.0,0.53302947]
[1768859673875,0.30431006,3214.9,3214.0,0.53302947]
[1768859674074,1.10905574,3214.8,3214.0,0.53302947]
[1768859674276,1.10905574,3214.7,3214.0,0.53302947]
[1768859674476,0.80474568,3214.6,3214.0,0.53302947]
[1768859674680,0.80474568,3214.5,3213.8,1.29190811]
[1768859674871,0.80474568,3214.4,3213.8,1.29190811]
[1768859675072,1.67327764,3215.0,3213.8,1.29190811]
[1768859675269,0.30430964,3214.9,3213.8,1.29190811]
[1768859675471,1.10905495,3214.8,3213.8,1.29190811]
[1768859675673,1.10905495,3214.7,3213.8,1.29190811]
[1768859675969,0.80474531,3214.6,3213.8,1.29190811]
[1768859676170,0.80474531,3214.5,3213.8,1.29190811]
[1768859676382,0.80474531,3214.4,3213.8,1.29190811]
[1768859676572,1.67327764,3215.0,3213.8,1.29190811]
[1768859676772,0.30430955,3214.9,3213.8,1.29190811]
[1768859676972,1.10905544,3214.8,3213.8,1.29190811]
[1768859677179,1.10905544,3214.7,3213.6,0.4729458]
[1768859677377,0.80474589,3214.6,3213.8,1.29190811]
[1768859677577,0.80474589,3214.5,3213.8,1.29190811]
[1768859677872,0.80474589,3214.4,3213.8,1.29190811]
[1768859678069,1.67327764,3215.0,3213.8,1.29190811]
[1768859678268,0.30430929,3214.9,3213.8,1.29190811]
[1768859678479,1.10905486,3214.8,3213.8,1.29190811]
[1768859678777,1.10905486,3214.7,3213.8,1.29190811]
[1768859678976,0.80474557,3214.6,3213.8,1.29190811]
[1768859679175,0.80474557,3214.5,3213.8,1.29190811]
[1768859679380,0.80474557,3214.4,3213.8,1.29190811]
[1768859679581,1.67327764,3215.0,3213.8,1.29190811]
[1768859679784,0.30430892,3214.9,3213.8,1.29190811]
[1768859679982,1.10905403,3214.8,3213.8,1.29190811]
[1768859680181,1.10905403,3214.7,3213.8,1.29190811]
[1768859680379,0.80474511,3214.6,3213.8,1.29190811]
[1768859680581,0.80474511,3214.5,3213.8,1.29190811]
[1768859680783,0.80474511,3214.4,3213.8,1.29190811]
[1768859680982,1.67327764,3215.0,3213.8,1.29190811]
[1768859681185,0.3043081,3214.9,3213.8,1.29190811]
[1768859681377,1.1090513,3214.8,3213.8,1.29190811]
[1768859681583,1.1090513,3214.7,3213.8,1.29190811]
[1768859681784,0.8047432,3214.6,3213.8,1.29190811]
[1768859682090,0.8047432,3214.5,3213.8,1.29190811]
[1768859682292,0.8047432,3214.4,3213.8,1.29190811]
[1768859682483,1.67327764,3215.0,3213.8,1.29190811]
[1768859682685,0.30430808,3214.9,3213.8,1.29190811]
[1768859682984,1.10905149,3214.8,3213.8,1.29190811]
[1768859683177,1.10905149,3214.7,3213.8,1.29190811]
[1768859683380,0.80474341,3214.6,3213.8,1.29190811]
[1768859683577,0.80474341,3214.5,3213.8,1.29190811]
[1768859683781,0.80474341,3214.4,3213.8,1.29190811]
[1768859683986,1.67327764,3215.0,3213.8,1.29190811]
[1768859684187,0.30431087,3214.9,3213.8,1.29190811]
[1768859684386,1.10906175,3214.8,3213.8,1.29190811]
[1768859684681,1.10906175,3214.7,3213.8,1.29190811]
[1768859684883,0.80475088,3214.6,3213.6,0.4729458]
[1768859685078,0.80475088,3214.5,3213.6,0.4729458]
[1768859685292,0.80475088,3214.4,3213.6,0.4729458]
[1768859685490,1.67327764,3215.0,3213.6,0.4729458]
[1768859685688,0.30431057,3214.9,3213.6,0.4729458]
[1768859685890,1.1090603,3214.8,3213.6,0.4729458]
[1768859686089,1.1090603,3214.7,3213.6,0.4729458]
[1768859686386,0.80474973,3214.6,3213.6,0.4729458]
[1768859686587,0.80474973,3214.5,3213.6,0.4729458]
[1768859686786,0.80474857,3214.4,3213.6,0.4729458]
[1768859686991,1.67327764,3215.0,3213.6,0.4729458]
[1768859687190,0.30431014,3214.9,3213.6,0.4729458]
[1768859687387,1.10905884,3214.8,3213.6,0.4729458]
[1768859687684,1.10905884,3214.7,3213.6,0.4729458]
[1768859687883,0.8047487,3214.6,3213.6,0.4729458]
[1768859688083,0.8047487,3214.5,3213.6,0.4729458]
[1768859688283,1.67327764,3215.0,3213.6,0.4729458]
[1768859688488,0.30431026,3214.9,3213.6,0.4729458]
[1768859688687,1.10905931,3214.8,3213.6,0.4729458]
[1768859688888,1.10905931,3214.7,3213.6,0.4729458]
[1768859689089,0.80474905,3214.6,3213.6,0.4729458]
[1768859689286,0.80474905,3214.5,3213.6,0.4729458]
[1768859689485,0.80474905,3214.4,3213.6,0.4729458]
[1768859689692,1.67327764,3215.0,3213.6,0.4729458]
[1768859689893,0.30433237,3214.9,3213.6,0.4729458]
[1768859690094,1.10913996,3214.8,3213.6,0.4729458]
[1768859690295,1.10913996,3214.7,3213.6,0.4729458]
[1768859690593,0.80480759,3214.6,3213.6,0.4729458]
[1768859690789,0.80480759,3214.5,3213.6,0.4729458]
[1768859690995,0.80480759,3214.4,3213.6,0.4729458]
[1768859691195,1.67327764,3215.0,3213.6,0.4729458]
[1768859691398,0.30433266,3214.9,3213.6,0.4729458]
[1768859691695,1.10914101,3214.8,3213.6,0.4729458]
[1768859691893,1.10914101,3214.7,3213.6,0.4729458]
[1768859692087,0.80480835,3214.6,3213.6,0.4729458]
[1768859692287,0.80480835,3214.5,3213.6,0.4729458]
[1768859692488,0.80480835,3214.4,3213.6,0.4729458]
[1768859692691,1.67327764,3215.0,3213.6,0.4729458]
[1768859692982,0.30433374,3214.9,3213.6,0.4729458]
[1768859693188,1.10914474,3214.8,3213.6,0.4729458]
[1768859693393,1.10914474,3214.7,3213.6,0.4729458]
[1768859693590,0.804811,3214.6,3213.6,0.4729458]
[1768859693793,0.804811,3214.5,3213.6,0.4729458]
[1768859693987,0.804811,3214.4,3213.6,0.4729458]
[1768859694192,1.67327764,3215.0,3213.6,0.4729458]
[1768859694394,0.30433434,3214.9,3213.6,0.4729458]
[1768859694594,1.10914705,3214.8,3213.6,0.4729458]
[1768859694800,1.10914705,3214.7,3213.6,0.4729458]
[1768859695001,0.80481271,3214.6,3213.6,0.4729458]
[1768859695200,0.80481271,3214.5,3213.6,0.4729458]
[1768859695401,0.80481271,3214.4,3213.6,0.4729458]
[1768859695701,1.67327764,3215.0,3213.6,0.4729458]
[1768859695902,0.30433505,3214.9,3213.6,0.4729458]
[1768859696102,1.10914928,3214.8,3213.6,0.4729458]
[1768859696296,1.10914928,3214.7,3213.6,0.4729458]
[1768859696494,0.80481423,3214.6,3213.6,0.4729458]
[1768859696695,0.80481423,3214.5,3213.6,0.4729458]
[1768859696900,0.80481423,3214.4,3213.6,0.4729458]
[1768859697098,1.67327764,3215.0,3213.6,0.4729458]
[1768859697393,0.30437098,3214.9,3213.6,0.4729458]
[1768859697688,1.10927949,3214.8,3213.6,0.4729458]
[1768859697890,1.10927949,3214.7,3213.6,0.4729458]
[1768859698101,0.80490851,3214.6,3213.6,0.4729458]
[1768859698302,0.80490851,3214.5,3213.6,0.4729458]
[1768859698502,0.80490851,3214.4,3213.6,0.4729458]
[1768859698802,1.67327764,3215.0,3213.6,0.4729458]
[1768859699102,0.3043715,3214.9,3213.6,0.4729458]
[1768859699303,1.1091916,3214.8,3213.6,0.4729458]
[1768859699602,1.1091916,3214.7,3213.6,0.4729458]
[1768859699903,0.8048201,3214.6,3213.6,0.4729458]
[1768859700203,0.8048201,3214.5,3213.6,0.4729458]
[1768859700506,0.8048201,3214.4,3213.6,0.4729458]
[1768859700706,1.82889764,3215.0,3213.6,0.4729458]
[1768859701003,1.10919135,3214.9,3213.6,0.4729458]
[1768859701199,1.10919135,3214.8,3213.6,0.4729458]
[1768859701398,1.10919135,3214.7,3213.6,0.4729458]
[1768859701699,0.80482011,3214.6,3213.6,0.4729458]
[1768859702003,0.80482011,3214.5,3213.6,0.4729458]
[1768859702302,1.82889764,3215.0,3213.6,0.4729458]
[1768859702602,2.23656541,3215.5,3214.2,1.69219679]
[1768859702803,0.15559,3215.6,3214.2,1.69219679]
[1768859703702,0.1593735,3215.6,3214.2,1.69219679]
[1768859705303,0.1593735,3215.6,3214.3,0.40041307]
[1768859705801,0.0037835,3215.6,3214.6,1.69219679]
[1768859709202,0.0037835,3215.6,3214.7,0.40041307]
[1768859732215,0.79087235,3215.5,3214.7,0.40041307]
[1768859732419,0.0037835,3215.6,3214.7,0.40041307]
[1768859732620,0.79087236,3215.5,3214.7,0.40041307]
[1768859732923,0.0037835,3215.6,3214.7,0.40041307]
[1768859733128,0.79089112,3215.5,3214.7,0.40041307]
[1768859733327,0.0037835,3215.6,3214.7,0.40041307]
[1768859733528,0.7910895,3215.5,3214.7,0.40041307]
[1768859733824,0.0037835,3215.6,3214.7,0.40041307]
[1768859734129,0.79108953,3215.5,3214.7,0.40041307]
[1768859734428,0.7915359,3215.4,3214.7,0.40041307]
[1768859734623,0.0037835,3215.6,3214.7,0.40041307]
[1768859734827,0.79153815,3215.5,3214.7,0.40041307]
[1768859735026,0.79153815,3215.4,3214.7,0.40041307]
[1768859735226,0.0037835,3215.6,3214.7,0.40041307]
[1768859735433,0.79194555,3215.5,3214.7,0.40041307]
[1768859735725,0.79194555,3215.4,3214.7,0.40041307]
[1768859735931,0.0037835,3215.6,3214.7,0.40041307]
[1768859736232,0.7919415,3215.5,3214.7,0.40041307]
[1768859736424,0.7919415,3215.4,3214.7,0.40041307]
[1768859736624,0.0037835,3215.6,3214.7,0.40041307]
[1768859736821,0.79193959,3215.5,3214.7,0.40041307]
[1768859737131,0.79193959,3215.4,3214.7,0.40041307]
[1768859737328,0.0037835,3215.6,3214.7,0.40041307]
[1768859737531,0.79192602,3215.5,3214.7,0.40041307]
[1768859737829,0.79192602,3215.4,3214.7,0.40041307]
[1768859738125,0.0037835,3215.6,3214.7,0.40041307]
[1768859738332,0.79191841,3215.5,3214.7,0.40041307]
[1768859738628,0.79191841,3215.4,3214.7,0.40041307]
[1768859738826,0.0037835,3215.6,3214.7,0.40041307]
[1768859739023,0.79191787,3215.5,3214.7,0.40041307]
[1768859739225,0.79191787,3215.4,3214.7,0.40041307]
[1768859739525,0.0037835,3215.6,3214.7,0.40041307]
[1768859739721,0.79191139,3215.5,3214.7,0.40041307]
[1768859740017,0.79191139,3215.4,3214.7,0.40041307]
[1768859740224,0.0037835,3215.6,3214.7,0.40041307]
[1768859740419,0.79190944,3215.5,3214.7,0.40041307]
[1768859740623,0.79190944,3215.4,3214.7,0.40041307]
[1768859740824,0.0037835,3215.6,3214.7,0.40041307]
[1768859741030,0.79190767,3215.5,3214.7,0.40041307]
[1768859741230,0.79190767,3215.4,3214.7,0.40041307]
[1768859741431,0.0037835,3215.6,3214.7,0.40041307]
[1768859741634,0.79190951,3215.5,3214.7,0.40041307]
[1768859741937,0.79190951,3215.4,3214.7,0.40041307]
[1768859742136,0.0037835,3215.6,3214.7,0.40041307]
[1768859742337,0.79190953,3215.5,3214.7,0.40041307]
[1768859742532,0.79190953,3215.4,3214.7,0.40041307]
[1768859742727,0.0037835,3215.6,3214.7,0.40041307]
[1768859742932,0.79184456,3215.5,3214.7,0.40041307]
[1768859743132,0.79184456,3215.4,3214.7,0.40041307]
[1768859743333,0.0037835,3215.6,3214.7,0.40041307]
[1768859743534,0.79184504,3215.5,3214.7,0.40041307]
[1768859743733,0.79184504,3215.4,3214.7,0.40041307]
[1768859744032,0.0037835,3215.6,3214.7,0.40041307]
[1768859744233,0.79184496,3215.5,3214.7,0.40041307]
[1768859744429,0.79184496,3215.4,3214.7,0.40041307]
[1768859744635,0.0037835,3215.6,3214.7,0.40041307]
[1768859744933,0.79183964,3215.5,3214.7,0.40041307]
[1768859745135,0.79183964,3215.4,3214.7,0.40041307]
[1768859745346,0.0037835,3215.6,3214.7,0.40041307]
[1768859745547,0.79184392,3215.5,3214.7,0.40041307]
[1768859745746,0.79184392,3215.4,3214.7,0.40041307]
[1768859745952,0.0037835,3215.6,3214.7,0.40041307]
[1768859746157,0.79184908,3215.5,3214.7,0.40041307]
[1768859746349,0.79184908,3215.4,3214.7,0.40041307]
[1768859746548,0.0037835,3215.6,3214.7,0.40041307]
[1768859746750,0.79185449,3215.5,3214.7,0.40041307]
[1768859746955,0.79185449,3215.4,3214.7,0.40041307]
[1768859747157,0.0037835,3215.6,3214.7,0.40041307]
[1768859747351,0.79185656,3215.5,3214.7,0.40041307]
[1768859747549,0.79185656,3215.4,3214.7,0.40041307]
[1768859747848,0.0037835,3215.6,3214.7,0.40041307]
[1768859748049,0.79185656,3215.5,3214.7,0.40041307]
[1768859748253,0.79185656,3215.4,3214.7,0.40041307]
[1768859748455,0.0037835,3215.6,3214.7,0.40041307]
[1768859748652,0.79186484,3215.5,3214.7,0.40041307]
[1768859748850,0.79186484,3215.4,3214.7,0.40041307]
[1768859749052,0.0037835,3215.6,3214.7,0.40041307]
[1768859749250,0.79186486,3215.5,3214.7,0.40041307]
[1768859749453,0.79186486,3215.4,3214.7,0.40041307]
[1768859749654,0.0037835,3215.6,3214.7,0.40041307]
[1768859749948,0.79187443,3215.5,3214.7,0.40041307]
[1768859750146,0.79187443,3215.4,3214.7,0.40041307]
[1768859750348,0.0037835,3215.6,3214.7,0.40041307]
[1768859750551,0.79188615,3215.5,3214.7,0.40041307]
[1768859750747,0.79188615,3215.4,3214.7,0.40041307]
[1768859750952,0.0037835,3215.6,3214.7,0.40041307]
[1768859751152,0.79188664,3215.5,3214.7,0.40041307]
[1768859751348,0.79188664,3215.4,3214.7,0.40041307]
[1768859751558,0.0037835,3215.6,3214.7,0.40041307]
[1768859751758,0.79190502,3215.5,3214.7,0.40041307]
[1768859751960,0.79190502,3215.4,3214.7,0.40041307]
[1768859752254,0.0037835,3215.6,3214.7,0.40041307]
[1768859752455,0.791923,3215.5,3214.7,0.40041307]
[1768859752661,0.791923,3215.4,3214.7,0.40041307]
[1768859752856,0.0037835,3215.6,3214.7,0.40041307]
[1768859753058,0.791923,3215.5,3214.7,0.40041307]
[1768859753257,0.791923,3215.4,3214.7,0.40041307]
[1768859753460,0.0037835,3215.6,3214.7,0.40041307]
[1768859753758,0.79194412,3215.5,3214.7,0.40041307]
[1768859754057,0.79194412,3215.4,3214.7,0.40041307]
[1768859754258,0.0037835,3215.6,3214.7,0.40041307]
[1768859754558,0.79197832,3215.5,3214.7,0.40041307]
[1768859754757,0.79197832,3215.4,3214.7,0.40041307]
[1768859754956,0.0037835,3215.6,3214.7,0.40041307]
[1768859755167,0.79197833,3215.5,3214.7,0.40041307]
[1768859755464,0.79197833,3215.4,3214.7,0.40041307]
[1768859755764,0.0037835,3215.6,3214.7,0.40041307]
[1768859755966,0.79201122,3215.5,3214.7,0.40041307]
[1768859756264,0.79201122,3215.4,3214.7,0.40041307]
[1768859756464,0.0037835,3215.6,3214.7,0.40041307]
[1768859756665,0.79207197,3215.5,3214.7,0.40041307]
[1768859756963,0.79207197,3215.4,3214.7,0.40041307]
[1768859757156,0.0037835,3215.6,3214.7,0.40041307]
[1768859757350,0.79208272,3215.5,3214.7,0.40041307]
[1768859757557,0.79208272,3215.4,3214.7,0.40041307]
[1768859757757,0.0037835,3215.6,3214.7,0.40041307]
[1768859758057,0.79208269,3215.5,3214.7,0.40041307]
[1768859758256,0.0037835,3215.6,3214.7,0.40041307]
[1768859758257,0.79208269,3215.4,3214.7,0.40041307]
[1768859758457,0.0037835,3215.6,3214.7,0.40041307]
[1768859758657,0.79210132,3215.5,3214.7,0.40041307]
[1768859758858,0.79210132,3215.4,3214.7,0.40041307]
[1768859759059,0.0037835,3215.6,3214.7,0.40041307]
[1768859759267,0.7921148,3215.5,3214.7,0.40041307]
[1768859759469,0.7921148,3215.4,3214.8,1.29128619]
[1768859759670,0.0037835,3215.6,3214.8,1.29128619]
[1768859759967,0.79211402,3215.5,3214.8,1.29128619]
[1768859760160,0.79211402,3215.4,3214.8,1.29128619]
[1768859760361,0.0037835,3215.6,3214.8,1.29128619]
[1768859760655,0.79211382,3215.5,3214.8,1.29128619]
[1768859760859,0.79211382,3215.4,3214.8,1.29128619]
[1768859761060,0.0037835,3215.6,3214.8,1.29128619]
[1768859761260,0.79211447,3215.5,3214.8,1.29128619]
[1768859761461,0.79211447,3215.4,3214.8,1.29128619]
[1768859761661,0.0037835,3215.6,3214.8,1.29128619]
[1768859761859,0.79213316,3215.5,3214.8,1.29128619]
[1768859762058,0.79213316,3215.4,3214.8,1.29128619]
[1768859762359,0.0037835,3215.6,3214.8,1.29128619]
[1768859762558,0.79213339,3215.5,3214.8,1.29128619]
[1768859762769,0.79213339,3215.4,3214.8,1.29128619]
[1768859762971,0.0037835,3215.6,3214.8,1.29128619]
[1768859763173,0.79213647,3215.5,3214.8,1.29128619]
[1768859763373,0.79213647,3215.4,3214.8,1.29128619]
[1768859763559,0.0037835,3215.6,3214.8,1.29128619]
[1768859763762,0.79214678,3215.5,3214.8,1.29128619]
[1768859763972,0.79214678,3215.4,3214.8,1.29128619]
[1768859764270,0.0037835,3215.6,3214.8,1.29128619]
[1768859764471,0.79220151,3215.5,3214.8,1.29128619]
[1768859764671,0.79220151,3215.4,3214.8,1.29128619]
[1768859764872,0.0037835,3215.6,3214.8,1.29128619]
[1768859765062,0.79225637,3215.5,3214.8,1.29128619]
[1768859765262,0.79225637,3215.4,3214.8,1.29128619]
[1768859765463,0.0037835,3215.6,3214.8,1.29128619]
[1768859765664,0.79233124,3215.5,3214.8,1.29128619]
[1768859765964,0.79233124,3215.4,3214.8,1.29128619]
[1768859766163,0.0037835,3215.6,3214.8,1.29128619]
[1768859766372,0.79232856,3215.5,3214.8,1.29128619]
[1768859766573,0.79232856,3215.4,3214.8,1.29128619]
[1768859766773,0.0037835,3215.6,3214.8,1.29128619]
[1768859767073,0.79232791,3215.5,3214.8,1.29128619]
[1768859767274,0.79232791,3215.4,3214.8,1.29128619]
[1768859767477,0.0037835,3215.6,3214.8,1.29128619]
[1768859767665,0.79241091,3215.5,3214.8,1.29128619]
[1768859767866,0.79241091,3215.4,3214.8,1.29128619]
[1768859768070,0.0037835,3215.6,3214.8,1.29128619]
[1768859768269,0.79249495,3215.5,3214.8,1.29128619]
[1768859768470,0.79249495,3215.4,3214.8,1.29128619]
[1768859768670,0.0037835,3215.6,3214.8,1.29128619]
[1768859768871,0.79277221,3215.5,3214.8,1.29128619]
[1768859769076,0.79277221,3215.4,3214.8,1.29128619]
[1768859769274,0.0037835,3215.6,3214.8,1.29128619]
[1768859769474,0.79277369,3215.5,3214.8,1.29128619]
[1768859769677,0.79277369,3215.4,3214.8,1.29128619]
[1768859769976,0.0037835,3215.6,3214.8,1.29128619]
[1768859770173,0.79278595,3215.5,3214.8,1.29128619]
[1768859770373,0.79278595,3215.4,3214.8,1.29128619]
[1768859770575,0.0037835,3215.6,3214.8,1.29128619]
[1768859770773,0.79278616,3215.5,3214.8,1.29128619]
[1768859770974,0.79278616,3215.4,3214.8,1.29128619]
[1768859771174,0.0037835,3215.6,3214.8,1.29128619]
[1768859771481,0.79281381,3215.5,3214.8,1.29128619]
[1768859771778,0.79281381,3215.4,3214.8,1.29128619]
[1768859771978,0.0037835,3215.6,3214.8,1.29128619]
[1768859772165,0.79282537,3215.5,3214.8,1.29128619]
[1768859772370,0.79282537,3215.4,3214.8,1.29128619]
[1768859772580,0.0037835,3215.6,3214.8,1.29128619]
[1768859772880,0.79282629,3215.5,3214.8,1.29128619]
[1768859773178,0.79282629,3215.4,3214.8,1.29128619]
[1768859773378,0.0037835,3215.6,3214.8,1.29128619]
[1768859773578,0.79282669,3215.5,3214.8,1.29128619]
[1768859773777,0.79282669,3215.4,3214.8,1.29128619]
[1768859774078,0.0037835,3215.6,3214.8,1.29128619]
[1768859774280,0.79286018,3215.5,3214.8,1.29128619]
[1768859774577,0.79286018,3215.4,3214.8,1.29128619]
[1768859774778,0.0037835,3215.6,3214.8,1.29128619]
[1768859774980,0.79286005,3215.5,3214.8,1.29128619]
[1768859775277,0.79286005,3215.4,3214.8,1.29128619]
[1768859775484,0.0037835,3215.6,3214.8,1.29128619]
[1768859775666,0.792858,3215.5,3214.8,1.29128619]
[1768859775867,0.792858,3215.4,3214.8,1.29128619]
[1768859776073,0.0037835,3215.6,3214.8,1.29128619]
[1768859776272,0.79285875,3215.5,3214.8,1.29128619]
[1768859776474,0.79285875,3215.4,3214.8,1.29128619]
[1768859776771,0.0037835,3215.6,3214.8,1.29128619]
[1768859776966,0.79284441,3215.5,3214.8,1.29128619]
[1768859777171,0.79284441,3215.4,3214.8,1.29128619]
[1768859777376,0.0037835,3215.6,3214.8,1.29128619]
[1768859777677,0.79284479,3215.5,3214.8,1.29128619]
[1768859777872,0.79284479,3215.4,3214.8,1.29128619]
[1768859778071,0.0037835,3215.6,3214.8,1.29128619]
[1768859778272,0.79284481,3215.5,3214.8,1.29128619]
[1768859778470,0.79284481,3215.4,3214.8,1.29128619]
[1768859778668,0.0037835,3215.6,3214.8,1.29128619]
[1768859778866,0.79284561,3215.5,3214.8,1.29128619]
[1768859779079,0.79284561,3215.4,3214.8,1.29128619]
[1768859779380,0.0037835,3215.6,3214.8,1.29128619]
[1768859779581,0.79284477,3215.5,3214.8,1.29128619]
[1768859779876,0.79284477,3215.4,3214.8,1.29128619]
[1768859780077,0.0037835,3215.6,3214.8,1.29128619]
[1768859780278,0.79284613,3215.5,3214.8,1.29128619]
[1768859780481,0.79284613,3215.4,3214.8,1.29128619]
[1768859780683,0.0037835,3215.6,3214.8,1.29128619]
[1768859780982,0.79284814,3215.5,3214.8,1.29128619]
[1768859781280,0.79284814,3215.4,3214.8,1.29128619]
[1768859781481,0.0037835,3215.6,3214.8,1.29128619]
[1768859781683,0.79285604,3215.5,3214.8,1.29128619]
[1768859781881,0.79285604,3215.4,3214.8,1.29128619]
[1768859782083,0.0037835,3215.6,3214.8,1.29128619]
[1768859782280,0.79285539,3215.5,3214.8,1.29128619]
[1768859782582,0.79285539,3215.4,3214.8,1.29128619]
[1768859782775,0.0037835,3215.6,3214.8,1.29128619]
[1768859782975,0.79284948,3215.5,3214.8,1.29128619]
[1768859783174,0.79284948,3215.4,3214.8,1.29128619]
[1768859783375,0.0037835,3215.6,3214.8,1.29128619]
[1768859783572,0.79283462,3215.5,3214.8,1.29128619]
[1768859783777,0.79283462,3215.4,3214.8,1.29128619]
[1768859783985,0.0037835,3215.6,3214.8,1.29128619]
[1768859784190,0.79283332,3215.5,3214.8,1.29128619]
[1768859784381,0.79283332,3215.4,3214.8,1.29128619]
[1768859784680,0.0037835,3215.6,3214.8,1.29128619]
[1768859784881,0.79282218,3215.5,3214.8,1.29128619]
[1768859785080,0.79282218,3215.4,3214.8,1.29128619]
[1768859785280,0.0037835,3215.6,3214.8,1.29128619]
[1768859785487,0.79280902,3215.5,3214.8,1.29128619]
[1768859785685,0.79280902,3215.4,3214.8,1.29128619]
[1768859785888,0.0037835,3215.6,3214.8,1.29128619]
[1768859786088,0.79281605,3215.5,3214.8,1.29128619]
[1768859786386,0.79281605,3215.4,3214.8,1.29128619]
[1768859786575,0.0037835,3215.6,3214.8,1.29128619]
[1768859786775,0.79280976,3215.5,3214.8,1.29128619]
[1768859786970,0.79280976,3215.4,3214.8,1.29128619]
[1768859787182,0.0037835,3215.6,3214.8,1.29128619]
[1768859787382,0.79281658,3215.5,3214.8,1.29128619]
[1768859787584,0.79281658,3215.4,3214.8,1.29128619]
[1768859787784,0.0037835,3215.6,3214.8,1.29128619]
[1768859787983,0.79281658,3215.5,3214.8,1.29128619]
[1768859788185,0.79281658,3215.4,3214.8,1.29128619]
[1768859788382,0.0037835,3215.6,3214.8,1.29128619]
[1768859788582,0.79279383,3215.5,3214.8,1.29128619]
[1768859788785,0.79279383,3215.4,3214.8,1.29128619]
[1768859788986,0.0037835,3215.6,3214.8,1.29128619]
[1768859789187,0.79281227,3215.5,3214.8,1.29128619]
[1768859789387,0.79281227,3215.4,3214.8,1.29128619]
[1768859789592,0.0037835,3215.6,3214.8,1.29128619]
[1768859789793,0.79280562,3215.5,3214.8,1.29128619]
[1768859790093,0.79280562,3215.4,3214.8,1.29128619]
[1768859790285,0.0037835,3215.6,3214.8,1.29128619]
[1768859790487,0.79280408,3215.5,3214.8,1.29128619]
[1768859790686,0.79280408,3215.4,3214.8,1.29128619]
[1768859790896,0.0037835,3215.6,3214.8,1.29128619]
[1768859791092,0.79280447,3215.5,3214.8,1.29128619]
[1768859791386,0.79280447,3215.4,3214.8,1.29128619]
[1768859791593,0.0037835,3215.6,3214.8,1.29128619]
[1768859791784,0.79279483,3215.5,3214.8,1.29128619]
[1768859791978,0.79279483,3215.4,3214.8,1.29128619]
[1768859792178,0.0037835,3215.6,3214.8,1.29128619]
[1768859792482,0.79280304,3215.5,3214.8,1.29128619]
[1768859792781,0.79280304,3215.4,3214.8,1.29128619]
[1768859792977,0.0037835,3215.6,3214.8,1.29128619]